bitfinex-derivatives/quotes_BTCF0:USTF0_20241210
["timestamp","ask_amount","ask_price","bid_price","bid_amount"]
[1733815285508,0.10164663,97125.0,97115.0,0.1216]
[1733815285708,8e-05,97116.0,97115.0,0.1216]
[1733815287113,8e-05,97116.0,97115.0,0.1306]
[1733815288113,0.001,97126.0,97125.0,0.051462]
[1733815288311,0.051454,97139.0,97125.0,0.051462]
[1733815288312,0.051454,97139.0,97129.0,0.051459]
[1733815288504,0.051454,97139.0,97133.0,0.3608]
[1733815288704,0.051454,97139.0,97134.0,0.0579]
[1733815290113,0.051454,97139.0,97134.0,0.0609]
[1733815290309,0.051454,97139.0,97134.0,0.0649]
[1733815290705,0.051455,97138.0,97134.0,0.007]
[1733815292414,0.051455,97138.0,97134.0,0.004]
[1733815292621,0.051455,97138.0,97134.0,0.007]
[1733815293210,0.051455,97138.0,97135.0,0.0614]
[1733815294519,0.051455,97138.0,97135.0,0.4222]
[1733815296019,0.051455,97138.0,97135.0,0.4232]
[1733815296318,0.051455,97138.0,97135.0,0.0624]
[1733815296718,0.051455,97138.0,97135.0,0.0634]
[1733815297629,0.17409852,97138.0,97135.0,0.0634]
[1733815297927,0.051455,97138.0,97135.0,0.0634]
[1733815298421,0.17409852,97138.0,97135.0,0.0634]
[1733815299227,0.12264352,97137.0,97135.0,0.0634]
[1733815299522,0.12264352,97136.0,97135.0,0.0634]
[1733815300228,0.12264352,97136.0,97135.0,0.0624]
[1733815300525,0.051455,97138.0,97135.0,0.0634]
[1733815301027,0.051455,97138.0,97137.0,4e-05]
[1733815301430,0.15353196,97141.0,97139.0,0.051454]
[1733815301621,0.15353196,97145.0,97143.0,0.051452]
[1733815301818,0.3608,97146.0,97137.0,4e-05]
[1733815302023,0.12299662,97143.0,97142.0,0.051453]
[1733815303323,0.002,97145.0,97142.0,0.051453]
[1733815303324,0.002,97145.0,97142.0,0.052453]
[1733815303730,0.002,97145.0,97144.0,4e-05]
[1733815304523,0.15353196,97150.0,97144.0,4e-05]
[1733815304717,0.15353196,97151.0,97144.0,4e-05]
[1733815304924,0.05145,97148.0,97142.0,0.053453]
[1733815305120,0.12304684,97144.0,97142.0,0.052453]
[1733815305324,0.12304684,97143.0,97142.0,0.052453]
[1733815306122,0.12304684,97144.0,97142.0,0.052453]
[1733815306321,0.12304684,97144.0,97142.0,0.053453]
[1733815306627,0.12304684,97144.0,97143.0,4e-05]
[1733815308532,0.12304684,97144.0,97143.0,0.052492]
[1733815308929,0.12304684,97149.0,97147.0,0.05145]
[1733815309234,0.12304684,97155.0,97154.0,0.051446]
[1733815309430,0.12304684,97157.0,97156.0,0.051445]
[1733815309945,0.12304684,97157.0,97156.0,0.051485]
[1733815310126,0.12304684,97158.0,97156.0,0.051485]
[1733815310432,0.12304684,97158.0,97157.0,4e-05]
[1733815310638,0.12304684,97159.0,97157.0,4e-05]
[1733815310826,0.12304684,97158.0,97157.0,4e-05]
[1733815311131,0.12304684,97158.0,97156.0,0.051445]
[1733815311325,0.12304684,97159.0,97156.0,0.051445]
[1733815311526,8e-05,97157.0,97156.0,0.051445]
[1733815311830,8e-05,97157.0,97156.0,0.09646878]
[1733815312037,0.00208,97157.0,97156.0,0.09646878]
[1733815312833,8e-05,97157.0,97156.0,0.09646878]
[1733815313539,8e-05,97157.0,97156.0,0.051445]
[1733815313831,0.00108,97157.0,97156.0,0.051445]
[1733815315230,0.00108,97157.0,97156.0,0.09646875]
[1733815315433,0.00108,97157.0,97156.0,0.051445]
[1733815318543,0.00108,97157.0,97156.0,0.09646875]
[1733815320645,0.00108,97157.0,97156.0,0.051445]
[1733815321937,0.00108,97157.0,97156.0,0.12891081]
[1733815322146,0.00108,97157.0,97156.0,0.09646875]
[1733815323342,0.001,97157.0,97156.0,0.09646875]
[1733815323544,8.09e-05,97166.0,97165.0,0.05144]
[1733815323849,8.09e-05,97166.0,97165.0,0.09650375]
[1733815325045,0.0050809,97166.0,97165.0,0.09650375]
[1733815325547,0.0070809,97166.0,97165.0,0.09650375]
[1733815327351,0.0070809,97166.0,97165.0,0.05148]
[1733815327536,0.0070809,97166.0,97165.0,0.09650052]
[1733815328042,0.0020809,97166.0,97165.0,0.05148]
[1733815328245,0.3608,97187.0,97165.0,0.31066515]
[1733815328446,0.3608,97187.0,97179.0,0.3608]
[1733815328646,0.3608,97187.0,97186.0,0.051469]
[1733815329646,0.0623,97190.0,97186.0,4e-05]
[1733815329847,0.0623,97190.0,97187.0,0.412228]
[1733815330040,0.10172254,97200.0,97195.0,0.051424]
[1733815330041,7.591e-05,97200.0,97195.0,0.051424]
[1733815330253,7.591e-05,97200.0,97197.0,0.051423]
[1733815330644,7.591e-05,97200.0,97195.0,0.3608]
[1733815330848,7.591e-05,97200.0,97199.0,4e-05]
[1733815331546,0.00607591,97200.0,97199.0,4e-05]
[1733815332050,7.591e-05,97200.0,97199.0,4e-05]
[1733815332243,0.00707591,97200.0,97199.0,0.00104]
[1733815332643,0.06149791,97200.0,97199.0,0.00104]
[1733815333848,0.01007591,97200.0,97199.0,0.00104]
[1733815336651,0.01007591,97200.0,97199.0,0.06134]
[1733815337055,0.01007591,97200.0,97199.0,0.07492521]
[1733815337443,0.0562,97219.0,97199.0,0.07492521]
[1733815337649,0.0562,97219.0,97217.0,0.051413]
[1733815337849,0.0562,97219.0,97218.0,0.00325441]
[1733815338044,0.01058885,97225.0,97218.0,0.00325441]
[1733815338248,0.0562,97224.0,97219.0,0.00321441]
[1733815338447,0.0562,97224.0,97220.0,0.00330969]
[1733815338751,0.0562,97224.0,97221.0,0.00321441]
[1733815339050,0.0562,97224.0,97222.0,0.00321441]
[1733815339253,0.0562,97224.0,97223.0,0.00321441]
[1733815340356,0.0572,97224.0,97220.0,9.528e-05]
[1733815340548,0.0572,97224.0,97204.0,0.3608]
[1733815340745,0.15306163,97214.0,97204.0,0.3608]
[1733815341256,0.10164663,97214.0,97204.0,0.3608]
[1733815341460,0.10164663,97214.0,97205.0,5.703e-05]
[1733815341461,0.051419,97207.0,97205.0,5.703e-05]
[1733815341758,0.0613,97206.0,97205.0,5.703e-05]
[1733815341954,0.4221,97206.0,97205.0,5.703e-05]
[1733815342770,0.4221,97206.0,97205.0,0.00405703]
[1733815343156,0.4221,97206.0,97146.0,0.05145]
[1733815343157,0.05144,97166.0,97146.0,0.05145]
[1733815343356,0.05142,97204.0,97128.0,0.3614]
[1733815343357,0.05145,97147.0,97128.0,0.3614]
[1733815343556,0.10164663,97138.0,97128.0,0.3608]
[1733815343747,0.10164663,97138.0,97128.0,0.41226]
[1733815344156,0.46244663,97140.0,97128.0,0.41226]
[1733815344757,0.3608,97132.0,97127.0,0.12]
[1733815344965,0.3608,97132.0,97128.0,0.009]
[1733815346566,0.3608,97132.0,97128.0,0.06046]
[1733815346857,0.3618,97132.0,97128.0,0.06246]
[1733815347063,0.3618,97132.0,97129.0,0.051459]
[1733815347662,0.3618,97132.0,97131.0,0.051458]
[1733815347663,0.3628,97132.0,97131.0,0.051458]
[1733815348969,0.3618,97132.0,97131.0,0.051458]
[1733815349266,0.3628,97132.0,97131.0,0.051458]
[1733815349766,0.3618,97132.0,97131.0,0.060458]
[1733815349959,0.3628,97132.0,97131.0,0.066458]
[1733815351765,0.002,97132.0,97131.0,0.066458]
[1733815352362,0.002,97132.0,97131.0,0.06967473]
[1733815352562,0.002,97132.0,97131.0,0.01821673]
[1733815353671,0.002,97132.0,97131.0,0.015]
[1733815353861,0.002,97132.0,97131.0,0.01821676]
[1733815357171,0.002,97132.0,97131.0,0.01821669]
[1733815359862,0.001,97132.0,97131.0,0.01221669]
[1733815360079,0.002,97132.0,97131.0,0.01721669]
[1733815360372,0.001,97132.0,97131.0,0.00821669]
[1733815360570,8e-05,97147.0,97146.0,0.05145]
[1733815360764,8e-05,97147.0,97146.0,0.05466669]
[1733815360966,8e-05,97147.0,97146.0,0.05470669]
[1733815362872,8e-05,97147.0,97146.0,0.05570605]
[1733815363373,8e-05,97147.0,97146.0,0.05670605]
[1733815364672,8e-05,97147.0,97146.0,0.05870605]
[1733815364876,8e-05,97147.0,97146.0,0.01125605]
[1733815369468,8e-05,97147.0,97146.0,0.00804]
[1733815369671,8e-05,97147.0,97146.0,0.01125623]
[1733815369872,8e-05,97147.0,97146.0,0.00804]
[1733815370176,8e-05,97147.0,97146.0,0.01125622]
[1733815370574,8e-05,97147.0,97146.0,0.00825622]
[1733815370767,8e-05,97147.0,97146.0,0.01125622]
[1733815372271,8e-05,97147.0,97146.0,0.00804]
[1733815373276,8e-05,97147.0,97146.0,0.01125625]
[1733815373777,8e-05,97147.0,97146.0,0.01447251]
[1733815374476,8e-05,97147.0,97146.0,0.00947251]
[1733815374673,8e-05,97147.0,97146.0,0.01447251]
[1733815375271,8e-05,97147.0,97146.0,0.01147247]
[1733815375475,8e-05,97147.0,97146.0,0.01447247]
[1733815382287,8e-05,97147.0,97146.0,0.01125625]
[1733815382585,8e-05,97147.0,97146.0,0.01447246]
[1733815383477,0.66088,97147.0,97131.0,0.00964876]
[1733815383679,0.3608,97132.0,97098.0,0.03224642]
[1733815383983,0.3608,97132.0,97109.0,0.05147]
[1733815383984,0.09224024,97113.0,97109.0,0.05147]
[1733815384383,0.10164663,97117.0,97109.0,0.05147]
[1733815384585,0.10164663,97117.0,97115.0,0.051466]
[1733815384886,0.10164663,97117.0,97110.0,0.03224642]
[1733815384887,0.3608,97124.0,97117.0,0.051466]
[1733815385087,0.10164663,97125.0,97120.0,0.051464]
[1733815385285,0.10164663,97125.0,97123.0,4e-05]
[1733815385481,0.168659,97131.0,97124.0,4e-05]
[1733815385888,0.168659,97131.0,97130.0,4e-05]
[1733815386078,0.26089924,97131.0,97130.0,4e-05]
[1733815386286,0.168659,97131.0,97130.0,4e-05]
[1733815386480,0.26089924,97131.0,97130.0,4e-05]
[1733815386687,0.529459,97131.0,97130.0,4e-05]
[1733815388485,0.529459,97131.0,97124.0,0.002]
[1733815388486,0.051462,97125.0,97124.0,0.002]
[1733815388683,0.051464,97121.0,97110.0,0.08364683]
[1733815388989,0.3608,97115.0,97111.0,0.04504209]
[1733815389184,0.3608,97115.0,97112.0,0.04504209]
[1733815389388,0.3608,97115.0,97113.0,0.04504209]
[1733815389685,0.3608,97115.0,97114.0,0.04504209]
[1733815390591,0.3618,97115.0,97114.0,0.04504209]
[1733815391579,0.3618,97115.0,97114.0,0.04904209]
[1733815392098,0.3618,97115.0,97114.0,0.05604209]
[1733815398197,0.001,97115.0,97114.0,0.05604209]
[1733815399195,0.001,97115.0,97114.0,0.011]
[1733815399401,0.001,97115.0,97114.0,0.05604079]
[1733815400095,0.001,97115.0,97114.0,0.011]
[1733815400295,0.001,97115.0,97114.0,0.05604111]
[1733815400701,0.001,97115.0,97114.0,0.011]
[1733815400902,0.001,97115.0,97114.0,0.05604111]
[1733815401403,0.001,97115.0,97114.0,0.011]
[1733815407404,0.001,97115.0,97114.0,0.05604374]
[1733815408093,0.001,97115.0,97085.0,0.3608]
[1733815408094,0.3618,97115.0,97085.0,0.3608]
[1733815408294,0.051497,97059.0,97057.0,0.00052]
[1733815408502,0.051497,97059.0,97058.0,0.04511298]
[1733815408800,0.773097,97059.0,97058.0,6.203e-05]
[1733815409008,0.051505,97044.0,97034.0,0.04505095]
[1733815409205,0.36073,97037.0,97029.0,0.0039]
[1733815409500,0.36073,97037.0,97031.0,0.051511]
[1733815409806,8e-05,97058.0,97043.0,0.051505]
[1733815410103,8e-05,97058.0,97057.0,4e-05]
[1733815410497,8e-05,97058.0,97057.0,0.051538]
[1733815411698,8e-05,97058.0,97057.0,0.055538]
[1733815412398,8e-05,97058.0,97057.0,0.056538]
[1733815412804,0.00108,97058.0,97057.0,0.057538]
[1733815413504,0.10164663,97070.0,97057.0,0.057538]
[1733815413805,0.10164663,97070.0,97069.0,4e-05]
[1733815414005,0.3608,97075.0,97069.0,4e-05]
[1733815414599,0.3608,97075.0,97070.0,4e-05]
[1733815415603,0.36091303,97071.0,97070.0,4e-05]
[1733815415809,0.36191303,97071.0,97070.0,4e-05]
[1733815420912,0.00111303,97071.0,97070.0,4e-05]
[1733815421099,0.00111303,97071.0,97070.0,0.11544]
[1733815421903,0.00011303,97071.0,97070.0,0.11544]
[1733815422098,0.00011303,97071.0,97070.0,0.11644]
[1733815425210,0.00011303,97071.0,97070.0,0.15920733]
[1733815430420,0.00011303,97071.0,97070.0,0.16120733]
[1733815431415,0.00011303,97071.0,97070.0,0.15820733]
[1733815431611,0.00011303,97071.0,97070.0,0.16120733]
[1733815433923,0.00011303,97071.0,97070.0,0.11844]
[1733815436927,0.00011303,97071.0,97070.0,0.06224]
[1733815436928,0.05160303,97071.0,97070.0,0.06224]
[1733815437117,0.05160303,97071.0,97070.0,0.00304]
[1733815437522,0.05992834,97071.0,97070.0,0.04810313]
[1733815438824,0.05992834,97071.0,97070.0,0.04510313]
[1733815439027,0.15192129,97071.0,97070.0,4e-05]
[1733815439229,0.05992834,97071.0,97070.0,4e-05]
[1733815440027,0.18258561,97071.0,97070.0,4e-05]
[1733815440523,0.18298131,97071.0,97070.0,4e-05]
[1733815440718,0.05992834,97071.0,97070.0,0.04510594]
[1733815441131,0.00843834,97071.0,97070.0,0.04510594]
[1733815442019,0.1007355,97071.0,97070.0,0.08787327]
[1733815442220,0.00843834,97071.0,97070.0,0.08787327]
[1733815442721,0.00843834,97071.0,97070.0,0.04510594]
[1733815443123,0.1007355,97071.0,97070.0,0.04510594]
[1733815443322,0.00843834,97071.0,97070.0,0.04510594]
[1733815445337,0.00011303,97071.0,97070.0,0.04510594]
[1733815445636,0.3608,97072.0,97070.0,0.04510594]
[1733815445637,0.3608,97072.0,97070.0,0.04280733]
[1733815445929,0.3608,97072.0,97071.0,0.05153]
[1733815446125,0.3608,97072.0,97071.0,0.11013]
[1733815446529,0.00052001,97080.0,97079.0,0.051486]
[1733815446719,0.3608,97081.0,97079.0,0.05157658]
[1733815446925,0.3608,97081.0,97080.0,0.04276733]
[1733815447126,0.3608,97081.0,97080.0,0.04280733]
[1733815447328,0.12361298,97090.0,97080.0,0.04280733]
[1733815447538,0.09230364,97094.0,97092.0,0.051479]
[1733815447729,0.0924025,97099.0,97095.0,0.051477]
[1733815448024,0.0924025,97099.0,97098.0,4e-05]
[1733815448025,9.886e-05,97099.0,97098.0,4e-05]
[1733815448232,9.886e-05,97099.0,97098.0,0.08785903]
[1733815449026,0.00909886,97099.0,97098.0,0.08785903]
[1733815449336,0.00909886,97099.0,97098.0,0.04280733]
[1733815449727,0.00909886,97099.0,97098.0,0.08785647]
[1733815450425,0.00909886,97099.0,97098.0,0.04280733]
[1733815450620,0.00809886,97099.0,97098.0,0.04380733]
[1733815451335,0.01209886,97099.0,97098.0,0.04380733]
[1733815451630,0.01209886,97099.0,97098.0,0.08885643]
[1733815455925,0.01209886,97099.0,97098.0,0.04380733]
[1733815456838,0.01209886,97099.0,97098.0,0.08885643]
[1733815458236,0.00409886,97099.0,97098.0,0.08785643]
[1733815458430,0.00409886,97099.0,97098.0,0.08985643]
[1733815460234,9.886e-05,97099.0,97098.0,0.09085643]
[1733815460742,9.886e-05,97099.0,97098.0,0.04580733]
[1733815462332,9.886e-05,97099.0,97098.0,0.00304]
[1733815462532,0.05157386,97099.0,97098.0,0.00304]
[1733815462936,0.051481,97088.0,97087.0,0.0039]
[1733815463243,0.412281,97088.0,97087.0,0.0039]
[1733815464042,0.412361,97088.0,97087.0,0.0049]
[1733815464432,0.413361,97088.0,97087.0,0.0119]
[1733815465743,0.412361,97088.0,97087.0,0.0049]
[1733815467345,0.413361,97088.0,97087.0,0.0049]
[1733815467646,0.412361,97088.0,97087.0,0.0039]
[1733815467842,0.414361,97088.0,97087.0,0.0039]
[1733815468544,0.42275991,97088.0,97087.0,0.0039]
[1733815469052,0.78355991,97088.0,97087.0,0.0039]
[1733815471048,0.78155991,97088.0,97087.0,0.0039]
[1733815473153,0.73007891,97088.0,97087.0,0.0039]
[1733815473341,0.73007891,97088.0,97087.0,0.04666733]
[1733815473538,0.36088,97088.0,97087.0,0.04666733]
[1733815473744,0.36088,97088.0,97087.0,0.09172245]
[1733815473939,0.36088,97088.0,97087.0,0.20972245]
[1733815474745,0.10187397,97097.0,97087.0,0.57352245]
[1733815474942,0.10187397,97097.0,97091.0,0.051479]
[1733815475151,0.10187397,97097.0,97096.0,4e-05]
[1733815475349,9.886e-05,97099.0,97096.0,0.04509512]
[1733815475649,9.886e-05,97099.0,97098.0,4e-05]
[1733815475850,9.886e-05,97099.0,97098.0,0.04509512]
[1733815477865,9.886e-05,97099.0,97098.0,0.04609512]
[1733815479057,9.886e-05,97099.0,97098.0,0.04809512]
[1733815479245,9.886e-05,97099.0,97098.0,0.00304]
[1733815480548,9.886e-05,97099.0,97098.0,0.00204]
[1733815481255,9.886e-05,97099.0,97098.0,0.00304]
[1733815481754,9.886e-05,97099.0,97098.0,0.00204]
[1733815483861,9.886e-05,97099.0,97098.0,0.00104]
[1733815484052,9.886e-05,97099.0,97098.0,0.00304]
[1733815484555,9.886e-05,97099.0,97098.0,0.00204]
[1733815485263,9.886e-05,97099.0,97098.0,0.04480733]
[1733815485467,9.886e-05,97099.0,97098.0,0.04580733]
[1733815486554,9.886e-05,97099.0,97098.0,0.04380733]
[1733815486755,9.886e-05,97099.0,97098.0,0.04480733]
[1733815487362,9.886e-05,97099.0,97098.0,0.08985798]
[1733815489266,9.886e-05,97099.0,97098.0,0.04480733]
[1733815492257,9.886e-05,97099.0,97098.0,0.08985937]
[1733815496575,9.886e-05,97099.0,97098.0,0.04480733]
[1733815501676,9.886e-05,97099.0,97098.0,0.08985948]
[1733815502780,9.886e-05,97099.0,97098.0,0.08885948]
[1733815502989,9.886e-05,97099.0,97098.0,0.08985948]
[1733815503878,9.886e-05,97099.0,97098.0,0.08885948]
[1733815504073,9.886e-05,97099.0,97098.0,0.09085948]
[1733815504480,0.0924025,97099.0,97098.0,0.09085948]
[1733815505587,0.0924025,97099.0,97098.0,0.08985948]
[1733815505979,0.48385297,97105.0,97098.0,0.08985948]
[1733815505980,0.09250329,97111.0,97098.0,0.44965948]
[1733815506280,0.00901347,97128.0,97110.0,0.36084]
[1733815506486,0.06683354,97130.0,97121.0,0.051463]
[1733815506694,0.06683354,97130.0,97127.0,4e-05]
[1733815506991,0.3608,97131.0,97129.0,4e-05]
[1733815507183,0.3608,97131.0,97130.0,0.04505215]
[1733815507379,0.3608,97131.0,97130.0,0.04509215]
[1733815507585,0.36969243,97131.0,97130.0,0.04509215]
[1733815509397,0.37569243,97131.0,97130.0,0.04509215]
[1733815509600,0.37569243,97131.0,97130.0,0.00104]
[1733815509601,0.38469243,97131.0,97130.0,0.00104]
[1733815511804,0.38469243,97131.0,97111.0,0.04276733]
[1733815511805,0.68469243,97131.0,97111.0,0.04276733]
[1733815512000,0.3608,97112.0,97093.0,0.051478]
[1733815512199,0.3608,97100.0,97092.0,0.1808]
[1733815512507,0.3608,97100.0,97094.0,0.051478]
[1733815512706,0.3608,97100.0,97095.0,0.04504837]
[1733815512905,0.3608,97100.0,97096.0,0.04504837]
[1733815513105,0.3608,97100.0,97097.0,0.04504837]
[1733815513302,0.3608,97100.0,97094.0,0.051478]
[1733815513303,0.3608,97100.0,97098.0,0.04504837]
[1733815513509,0.3608,97100.0,97099.0,0.04504837]
[1733815515310,0.3608,97100.0,97099.0,0.0878157]
[1733815515906,0.3608,97100.0,97099.0,0.0888157]
[1733815516301,0.3608,97100.0,97099.0,0.0898157]
[1733815518111,0.00884293,97106.0,97099.0,0.0898157]
[1733815518301,0.051471,97108.0,97100.0,0.04504837]
[1733815518508,0.051471,97108.0,97105.0,4e-05]
[1733815518702,0.051471,97108.0,97106.0,0.04504837]
[1733815518906,0.051471,97108.0,97107.0,0.04504837]
[1733815519303,0.06041385,97108.0,97107.0,0.04504837]
[1733815519905,0.06241385,97108.0,97107.0,0.04504837]
[1733815520408,0.06341385,97108.0,97107.0,0.04504837]
[1733815522311,0.004,97108.0,97107.0,0.04504837]
[1733815522506,0.004,97108.0,97106.0,0.051471]
[1733815522905,8e-05,97107.0,97106.0,0.051471]
[1733815523312,8e-05,97107.0,97105.0,4e-05]
[1733815524115,8e-05,97107.0,97106.0,0.04504794]
[1733815524116,0.00208,97107.0,97106.0,0.04504794]
[1733815524412,0.002,97107.0,97106.0,0.04504794]
[1733815525411,0.002,97107.0,97106.0,0.09651994]
[1733815525607,0.003,97107.0,97106.0,0.09651994]
[1733815525806,0.054471,97107.0,97105.0,4e-05]
[1733815526008,0.0594,97106.0,97105.0,4e-05]
[1733815527409,0.0604,97106.0,97105.0,4e-05]
[1733815527811,0.3604,97106.0,97090.0,0.0039]
[1733815528021,0.77308,97091.0,97090.0,0.0039]
[1733815528316,0.77316,97091.0,97090.0,0.04895893]
[1733815528514,0.051485,97080.0,97063.0,0.1726]
[1733815528714,0.412285,97080.0,97079.0,0.04515263]
[1733815529510,0.412365,97080.0,97079.0,0.04515263]
[1733815529704,0.412365,97080.0,97079.0,0.00309058]
[1733815529916,0.412365,97080.0,97079.0,0.00409058]
[1733815530311,0.412365,97080.0,97079.0,0.00109058]
[1733815530614,0.413365,97080.0,97079.0,9.058e-05]
[1733815534216,0.36188,97080.0,97063.0,0.1155]
[1733815534523,0.3608,97064.0,97045.0,0.051504]
[1733815534712,0.20351448,97055.0,97045.0,0.051504]
[1733815534914,0.20351448,97055.0,97040.0,0.00866884]
[1733815534915,0.36088,97046.0,97040.0,0.00866884]
[1733815535220,0.3608,97046.0,97041.0,0.04288172]
[1733815535918,0.3608,97046.0,97045.0,0.008]
[1733815536515,0.3618,97046.0,97041.0,0.05088172]
[1733815536810,0.3628,97046.0,97041.0,0.10338772]
[1733815538020,0.10175724,97055.0,97045.0,0.006]
[1733815538222,0.10175724,97055.0,97046.0,0.03976733]
[1733815538419,0.10175724,97055.0,97054.0,4e-05]
[1733815538619,0.36091531,97056.0,97054.0,4e-05]
[1733815539022,0.36091531,97056.0,97055.0,4e-05]
[1733815540926,0.36091531,97056.0,97055.0,0.00104]
[1733815541419,0.36091531,97056.0,97055.0,0.00304]
[1733815544032,0.051506,97042.0,97041.0,0.00011439]
[1733815544218,0.412306,97042.0,97041.0,0.00011439]
[1733815544420,0.412386,97042.0,97041.0,0.03988172]
[1733815545424,0.413386,97042.0,97041.0,0.04588172]
[1733815545928,0.412386,97042.0,97041.0,0.04088172]
[1733815546125,0.412386,97042.0,97041.0,0.04588172]
[1733815547022,0.412386,97042.0,97041.0,0.04488172]
[1733815547330,0.412386,97042.0,97041.0,0.04588172]
[1733815547922,0.412386,97042.0,97041.0,0.04088172]
[1733815548122,0.412386,97042.0,97041.0,0.04488172]
[1733815548516,0.412386,97042.0,97041.0,0.04088172]
[1733815548718,0.412386,97042.0,97041.0,0.04388172]
[1733815549020,0.412386,97042.0,97041.0,0.04488172]
[1733815549534,0.36088,97042.0,97041.0,0.04488172]
[1733815550231,8e-05,97042.0,97041.0,0.04488172]
[1733815550424,8e-05,97042.0,97041.0,0.10688172]
[1733815550621,8e-05,97042.0,97041.0,0.10288172]
[1733815550823,8e-05,97042.0,97041.0,0.10788172]
[1733815557735,8e-05,97042.0,97041.0,0.16808172]
[1733815562632,0.3608,97044.0,97042.0,0.051506]
[1733815562937,0.00896818,97053.0,97043.0,0.051545]
[1733815563129,0.46323256,97056.0,97047.0,0.051503]
[1733815563330,0.46323256,97056.0,97052.0,4e-05]
[1733815563331,0.46267255,97056.0,97052.0,4e-05]
[1733815563534,0.46267255,97056.0,97055.0,4e-05]
[1733815563535,0.36091531,97056.0,97055.0,4e-05]
[1733815563729,0.36996612,97056.0,97055.0,4e-05]
[1733815564340,0.36091531,97056.0,97055.0,0.051539]
[1733815564645,0.00011531,97056.0,97055.0,0.051539]
[1733815565140,0.00211531,97056.0,97055.0,0.051539]
[1733815565841,0.00211531,97056.0,97055.0,0.0976074]
[1733815566429,0.00211531,97056.0,97055.0,0.0966074]
[1733815566744,0.00011531,97056.0,97055.0,0.0996074]
[1733815572544,0.3608,97064.0,97055.0,0.0481084]
[1733815572749,0.3608,97064.0,97058.0,0.051497]
[1733815572947,0.3608,97064.0,97063.0,4e-05]
[1733815573148,0.3608,97064.0,97063.0,0.0451084]
[1733815573654,0.3608,97064.0,97063.0,4e-05]
[1733815574151,0.3608,97064.0,97063.0,0.04510703]
[1733815575851,0.3628,97064.0,97063.0,0.04510703]
[1733815576148,0.3638,97064.0,97063.0,0.04510703]
[1733815576957,0.3638,97064.0,97063.0,4e-05]
[1733815577245,0.3638,97064.0,97063.0,0.04510812]
[1733815578849,0.003,97064.0,97063.0,0.04510812]
[1733815580947,0.3638,97064.0,97063.0,0.04510812]
[1733815584253,0.003,97064.0,97063.0,0.04510812]
[1733815584862,0.003,97064.0,97063.0,0.09660212]
[1733815585458,0.06694479,97073.0,97070.0,0.051491]
[1733815585651,7.477e-05,97073.0,97071.0,0.08483545]
[1733815585855,7.477e-05,97073.0,97072.0,0.04506812]
[1733815586358,7.477e-05,97073.0,97072.0,0.04510812]
[1733815587757,0.00207477,97073.0,97072.0,0.04510812]
[1733815587962,0.00707477,97073.0,97072.0,0.04510812]
[1733815588464,0.00507477,97073.0,97072.0,0.04510812]
[1733815588765,0.00807477,97073.0,97072.0,0.04510812]
[1733815590059,0.00807477,97073.0,97072.0,0.40590812]
[1733815591760,0.3608,97097.0,97074.0,0.051488]
[1733815591959,0.3608,97097.0,97072.0,0.40590812]
[1733815591960,0.3608,97097.0,97090.0,0.05148]
[1733815592158,0.3608,97097.0,97096.0,4e-05]
[1733815592468,0.3608,97097.0,97096.0,0.04510812]
[1733815592766,0.3608,97097.0,97096.0,0.04521514]
[1733815594259,0.3608,97097.0,97096.0,0.04921514]
[1733815594769,0.3608,97097.0,97096.0,0.04721514]
[1733815595266,0.3608,97097.0,97096.0,0.04921514]
[1733815595967,0.07113426,97100.0,97096.0,0.04921514]
[1733815596267,0.0596,97107.0,97097.0,0.04506812]
[1733815596464,0.0596,97107.0,97096.0,0.00414702]
[1733815596763,0.0596,97107.0,97106.0,4e-05]
[1733815596764,0.00720169,97107.0,97106.0,4e-05]
[1733815596965,7.824e-05,97110.0,97106.0,4e-05]
[1733815597463,7.824e-05,97110.0,97109.0,4e-05]
[1733815598862,7.824e-05,97110.0,97109.0,0.04508593]
[1733815599061,7.824e-05,97110.0,97109.0,4e-05]
[1733815601679,0.05154824,97110.0,97109.0,4e-05]
[1733815602272,7.824e-05,97110.0,97109.0,4e-05]
[1733815605279,0.05154824,97110.0,97109.0,4e-05]
[1733815606771,7.824e-05,97110.0,97109.0,4e-05]
[1733815612979,7.824e-05,97110.0,97109.0,0.05151]
[1733815614584,7.824e-05,97110.0,97109.0,0.05865968]
[1733815616984,7.824e-05,97110.0,97109.0,4e-05]
[1733815620393,0.36087824,97110.0,97109.0,4e-05]
[1733815620792,0.41777824,97110.0,97109.0,4e-05]
[1733815624586,0.53367824,97110.0,97109.0,4e-05]
[1733815625192,0.66322548,97110.0,97109.0,4e-05]
[1733815625389,0.54063282,97110.0,97109.0,4e-05]
[1733815627401,0.54163282,97110.0,97109.0,4e-05]
[1733815628393,0.66472204,97110.0,97106.0,4e-05]
[1733815628697,0.051476,97097.0,97096.0,0.00010702]
[1733815628893,0.412276,97097.0,97096.0,0.00010702]
[1733815630597,0.412276,97097.0,97096.0,0.00410702]
[1733815631106,0.412276,97097.0,97096.0,0.00010702]
[1733815631308,0.412276,97097.0,97096.0,0.00310702]
[1733815631713,0.412276,97097.0,97096.0,0.00010702]
[1733815632016,0.412276,97097.0,97096.0,0.00310702]
[1733815632510,0.50459215,97097.0,97096.0,0.00410702]
[1733815632717,0.412276,97097.0,97096.0,0.00410702]
[1733815633825,0.412276,97097.0,97096.0,0.00210702]
[1733815634115,0.412276,97097.0,97096.0,0.00410702]
[1733815634512,0.51211967,97097.0,97096.0,0.00110702]
[1733815634907,0.41989899,97097.0,97096.0,0.00110702]
[1733815635108,0.42289899,97097.0,97096.0,0.00110702]
[1733815635417,0.51611578,97097.0,97096.0,0.00010702]
[1733815635717,0.42389899,97097.0,97096.0,0.00010702]
[1733815637012,0.42089899,97097.0,97096.0,0.00010702]
[1733815637216,0.42389899,97097.0,97096.0,0.00010702]
[1733815637912,0.42089899,97097.0,97096.0,0.00010702]
[1733815638315,0.41989899,97097.0,97096.0,0.00010702]
[1733815641018,0.51211578,97097.0,97096.0,0.03987435]
[1733815641612,0.41989899,97097.0,97096.0,0.03987435]
[1733815642815,0.78069899,97097.0,97096.0,0.03987435]
[1733815644426,0.78069899,97097.0,97096.0,0.04087435]
[1733815644621,0.78069899,97097.0,97096.0,0.04187435]
[1733815645624,0.78069899,97097.0,97096.0,0.04087435]
[1733815647124,0.78069899,97097.0,97096.0,0.04187435]
[1733815649429,0.87303085,97097.0,97096.0,0.04187435]